Workbook

Sheet Introduction
B3: KSU-Sheep Farm Management Guide Budgets
B5: Excel spreadsheet for sheep enterprise budgeting to evaluate potential income, costs and profitability
L8: Version- 3.2.2017
B28: INTRODUCTION
B29: The Kansas State University cost-return budgets were developed to serve as a barometer of profitability for various livestock industry enterprises. These budgets are NOT intended to represent any one operation. Each individual operation should adjust key inputs to reflect their own situation.
B31: INSTRUCTIONS FOR THE USER:
B32: Be sure to "Enable Content" and "Enable Macros" for the spreadsheet to function correctly. Blue values are inputs that should be changed from the defaults to match your operation. Black values are automatically calculated.
B37: FOR MORE INFORMATION:
B38: Developed by:
B40: Dustin L. Pendell, Ph.D. | G40: Robin Reid
B41: Agricultural Economist | G41: Extension Associate
B42: Department of Agricultural Economics | G42: Department of Agricultural Economics
B43: Kansas State University | G43: Kansas State University
B44: dpendell@k-state.edu | G44: robinreid@ksu.edu
B45: 785-532-3525 | G45: 785-532-0964
B48: ACKNOWLEDGEMENTS:
B49: The authors would like to thank DeWayne Craghead, Hodgeman County Extension Agent, for assistance in developing this budget.

Sheet Prices
A1: Current Prices
A2: One Year Out Prices
B4: =A1 -> Current Prices | C4: =A2 -> One Year Out Prices
B5: (as of March 1st, 2017) | C5: =B5 -> (as of March 1st, 2017) | D5: Notes/source
A6: Protein Supplement ($/ton) | B6: 316.8 | C6: 319.1 | D6: USE deferred CME C to Adjust off of Current price | F6: http://www.usda.gov/oce/commodity/projections/
A7: Grain Sorghum ($/cwt) | B7: 5.76 | C7: 6.322682081 | D7: USE deferred CME SB to Adjust off of Current price | F7: http://www.usda.gov/oce/commodity/projections/
A9: Silage ($/ton) | B9: 27.68 | C9: 30.384 | D9: 0 | F9: Equal to 8X the corn price
A10: Prairie Hay ($/ton) | B10: 65 | C10: 71.34971098 | D10: 0 | F10: Adjust off of Corn Price
A11: Alfalfa ($/ton) | B11: 100 | C11: 109.7687861 | D11: 0 | F11: Adjust off of Corn Price
A12: Pasture Rental ($/acre) | B12: 20 | C12: 20.4 | D12: 0 | F12: Current price *1.10
A13: Sheep Mineral ($/lb) | B13: 0.5 | C13: 0.51 | D13: 0 | F13: Current price *1.10
A15: Sept. Slaughter Lamb Price ($/cwt) | B15: 145.47 | C15: 143.69
A16: Current Cull Ewe Price ($/cwt) | B16: 46.82 | C16: 46.18 | D16: 0 | F16: http://www.usda.gov/oce/commodity/projections/

Sheet Feed
B1: SHEEP RATIONS TO SET FEED AND GRAZING COSTS
B3: Ewe Feed Requirements | C3: (per ewe unit: ewes, rams, retained/replaced ewes, and lambs) | H3: Stocker Feed Requirements | I3: (per animal unit)
C4: Qty | D4: Unit | I4: Qty | J4: Unit
B5: Pasture | C5: 1 | D5: total acres per year | H5: Pasture | I5: 4 | J5: total acres for feeding period
B6: Silage | C6: 730 | D6: total lbs per year | H6: Crop Residue | I6: 0 | J6: total acres for feeding period
B7: Alfalfa | C7: 457 | D7: total lbs per year | H7: Prairie/Brome Hay | I7: 0 | J7: total tons for feeding period
B8: Prairie Hay | C8: 0 | D8: total lbs per year | H8: Silage | I8: 0 | J8: total tons for feeding period
B9: Total Harvested Forage | C9: =SUM(C6:C8) -> 1187 | D9: total lbs per year | H9: Alfalfa | I9: 0 | J9: total tons for feeding period
B10: Grain Sorghum | C10: 630 | D10: total lbs per year | H10: Total Harvested Forage | I10: =SUM(I7:I9) -> 0 | J10: total tons for feeding period
B11: Protein Supplement | C11: 42 | D11: total lbs per year | H11: Corn | I11: 0 | J11: total pounds for feeding period
B12: Total Grain/Protein Supplements | C12: =SUM(C10:C11) -> 672 | D12: total lbs per year | H12: Soybean Meal | I12: 0 | J12: total pounds for feeding period
B13: Mineral | C13: 19 | D13: total lbs per year | H13: Total Grain/Protein Supplements | I13: =SUM(I11:I12) -> 0 | J13: total pounds for feeding period
H14: Salt and Mineral | I14: =0.25*150 -> 37.5 | J14: total pounds for feeding period
B16: Backgrounding Feed Requirements | C16: (per animal unit)
C17: Qty | D17: Unit | H17: Finishing Feed Requirements | I17: (per animal unit)
B18: Pasture | C18: 0 | D18: total acres for feeding period | I18: Qty | J18: Unit
B19: Crop Residue | C19: 0 | D19: total acres for feeding period | H19: Prairie/Brome Hay | I19: 1.5 | J19: lbs/day
B20: =IF(C1=Prices!A1,((Feed!C13*Prices!B11)),IF(C1=Prices!A2,((Feed!C13*Prices!C12)),IF(C1=Prices!A3,((Feed!C9/Feed!#REF!)*Prices!#REF!)+((Feed!C10/Feed!#REF!)*Prices!#REF!)+((Feed!C11/Feed!#REF!)*Prices!#REF!),""))) ->  | C20: 3.5 | D20: lbs/day | H20: Silage | I20: 0 | J20: lbs/day
B21: Silage | C21: 0 | D21: lbs/day | H21: Alfalfa | I21: 1.5 | J21: lbs/day
B22: Alfalfa | C22: 3.5 | D22: lbs/day | H22: Total Harvested Forage | I22: =SUM(I19:I21) -> 3 | J22: lbs/day
B23: Total Harvested Forage | C23: =SUM(C20:C22) -> 7 | D23: lbs/day | H23: Corn | I23: 17 | J23: lbs/day
B24: Corn | C24: 7 | D24: lbs/day | H24: DDG's | I24: 5 | J24: lbs/day
B25: DDG's | C25: 7 | D25: lbs/day | H25: Soybean Meal | I25: 0 | J25: lbs/day
B26: Soybean Meal | C26: 0 | D26: lbs/day | H26: Total Grain/Protein Supplements | I26: =SUM(I23:I25) -> 22 | J26: lbs/day
B27: Total Grain/Protein Supplements | C27: =SUM(C24:C26) -> 14 | D27: lbs/day | H27: Salt and Mineral | I27: 0.5 | J27: lbs/day
B28: Salt and Mineral | C28: 0.3 | D28: lbs/day

Sheet Once a Year Lambing
A1: KSU Once-a-Year Lambing Budget | C1: Current Prices | G1: =IF(C1=Prices!B4,TEXT(Prices!B5,"MMM-YYYY"),IF(C1=Prices!C4,TEXT(Prices!C5,"MMM-YYYY"),TEXT(Prices!#REF!,"MMM-YYYY"))) -> (as of March 1st, 2017)
L2: Click on "Current Prices" to change to "One Year Out Prices " or "Five Years Out Prices"
A3: Production Efficiency Information
A4: Lamb Crop Percentage | B4: 1.8
A5: Ewe Replacement Percentage | B5: 0.15
A7: Revenue | B7: Price | C7: Unit | E7: Lbs. | F7: Unit | J7: Total per Year per Ewe
A8: Slaughter Lambs | B8: =IF(C1=Prices!A1,Prices!B15,IF(C1=Prices!A2,Prices!C15,"")) -> 145.47 | C8: per cwt | D8: x | E8: 130 | F8: lbs. | G8: x | H8: =B4-IF(B21=0,B5,0) -> 1.65 | I8: = | J8: =B8*(E8/100)*H8 -> 312.03315
A9: Cull Ewes | B9: =IF(C1=Prices!A1, Prices!B16, IF(C1=Prices!A2, Prices!C16, "")) -> 46.82 | C9: per cwt | D9: x | E9: 150 | F9: lbs. | G9: x | H9: =B5 -> 0.15 | I9: = | J9: =B9*(E9/100)*H9 -> 10.5345
A10: Other Income | J10: 0
A12: Gross Income | J12: =SUM(J8:J10) -> 322.56765
A14: Variable Costs
A15: Pasture | B15: =IF(C1=Prices!A1, Prices!B12, IF(C1=Prices!A2, Prices!C12, "")) -> 20 | C15: per acre | D15: x | E15: =Feed!C5 -> 1 | F15: total acres | I15: = | J15: =B15*E15 -> 20
A16: Harvested Forage | B16: =IF(C1=Prices!A1,(((Feed!C8/Feed!C9)*Prices!B10)+((Feed!C6/Feed!C9)*Prices!B9)+((Feed!C7/Feed!C9)*Prices!B11)),IF(C1=Prices!A2,(((Feed!C8/Feed!C9)*Prices!C10)+((Feed!C6/Feed!C9)*Prices!C9)+((Feed!C7/Feed!C9)*Prices!C11)),"")) -> 55.52350463 | C16: per ton | D16: x | E16: =Feed!C9 -> 1187 | F16: total lbs | I16: = | J16: =B16*E16/2000 -> 32.9532
A17: Grain/Protein Supplements | B17: =IF(C1=Prices!A1,(((Feed!C10/Feed!C12)*(Prices!B7*2000/100))+((Feed!C11/Feed!C12)*Prices!B6)),IF(C1=Prices!A2,(((Feed!C10/Feed!C12)*(Prices!C7*2000/100))+((Feed!C11/Feed!C12)*Prices!C6)),"")) -> 127.8 | C17: per ton | D17: X | E17: =Feed!C12 -> 672 | F17: total lbs | I17: = | J17: =B17*E17/2000 -> 42.9408
A18: Mineral | B18: =IF(C1=Prices!A1,Prices!B13, IF(C1=Prices!A2,Prices!C13, "")) -> 0.5 | C18: per ton | D18: X | E18: =Feed!C13 -> 19 | F18: total lbs | I18: = | J18: =B18*E18/2000 -> 0.00475
A19: Other Feed | B19: 0 | C19: per unit | D19: X | E19: 0 | F19: units | I19: = | J19: =B19*E19 -> 0
A20: Labor | B20: 20 | C20: per hour | D20: x | E20: 4.2 | F20: total hours | I20: = | J20: =B20*E20 -> 84
A21: Replacement Ewe | B21: 0 | C21: per head | D21: x | E21: =B5 -> 0.15 | F21: hd | J21: =E21*B21 -> 0
A22: Ram Charge | J22: =(550-65)/5*2.5% -> 2.425
A23: Vet Medicine/Drugs | J23: 6
A24: Other Livestock Breeding/Marketing | J24: 4
A25: Shearing | J25: 5
A26: Utilities,Gas, Fuel, Oil | J26: 6.5
A27: Machinery, Facility/Equip. Repairs | J27: 6
A28: Other Variable Costs | J28: 0
A29: Cash Interest Paid | J29: 8.5
A30: Total Variable Costs | J30: =SUM(J15:J29) -> 218.32375
A32: Fixed Costs
A33: Depreciation - Buildings/Equipment | J33: 15
A34: Depreciation - Livestock | J34: 1
A35: Taxes/Insurance - Farm & Livestock | J35: 5
A36: Interest - Buildings/Equipment & Livestock | J36: 17
A37: Other Fixed Costs | J37: 0
A38: Total Fixed Costs | J38: =SUM(J33:J37) -> 38
A40: Total Costs | J40: =J30+J38 -> 256.32375
A42: Income Over Variable Costs | J42: =J12-J30 -> 104.2439
A43: Income Over Total Costs | J43: =J12-J40 -> 66.2439
A46: Kansas State University, Department of Agricultural Economics - www.agmanager.info
A47: Publication: AM-FMG-Once-a-Year Lambing | I47: =Introduction!L8 -> Version- 3.2.2017
A49: KSU Once-a-Year Lambing Budget
A93: Kansas State University, Department of Agricultural Economics - www.agmanager.info
A94: =A47 -> Publication: AM-FMG-Once-a-Year Lambing | I94: =I47 -> Version- 3.2.2017
A96: KSU Ewe Once-a-Year Lambing Budget
A97: Budget Assumptions
A99: Per Ewe Feed Requirements | B99: (ewe, ram, retained/replaced ewes, lamb)
B100: Qty | C100: Unit
A101: =Feed!B5 -> Pasture | B101: =Feed!C5 -> 1 | C101: =Feed!D5 -> total acres per year
A102: =Feed!B6 -> Silage | B102: =Feed!C6 -> 730 | C102: =Feed!D6 -> total lbs per year
A103: =Feed!B7 -> Alfalfa | B103: =Feed!C7 -> 457 | C103: =Feed!D7 -> total lbs per year
A104: =Feed!B8 -> Prairie Hay | B104: =Feed!C8 -> 0 | C104: =Feed!D8 -> total lbs per year
A105: =Feed!B9 -> Total Harvested Forage | B105: =Feed!C9 -> 1187 | C105: =Feed!D9 -> total lbs per year
A106: =Feed!B10 -> Grain Sorghum | B106: =Feed!C10 -> 630 | C106: =Feed!D10 -> total lbs per year
A107: =Feed!B11 -> Protein Supplement | B107: =Feed!C11 -> 42 | C107: =Feed!D11 -> total lbs per year
A108: =Feed!B12 -> Total Grain/Protein Supplements | B108: =Feed!C12 -> 672 | C108: =Feed!D12 -> total lbs per year
A109: =Feed!B13 -> Mineral | B109: =Feed!C13 -> 19 | C109: =Feed!D13 -> total lbs per year
A113: Default Sheep Prices
B114: Current | C114: One Year Out
A115: =Prices!A6 -> Protein Supplement ($/ton) | B115: =Prices!B6 -> 316.8 | C115: =Prices!C6 -> 319.1
A116: =Prices!A7 -> Grain Sorghum ($/cwt) | B116: =Prices!B7 -> 5.76 | C116: =Prices!C7 -> 6.322682081
A117: =Prices!A9 -> Silage ($/ton) | B117: =Prices!B9 -> 27.68 | C117: =Prices!C9 -> 30.384
A118: =Prices!A10 -> Prairie Hay ($/ton) | B118: =Prices!B10 -> 65 | C118: =Prices!C10 -> 71.34971098
A119: =Prices!A11 -> Alfalfa ($/ton) | B119: =Prices!B11 -> 100 | C119: =Prices!C11 -> 109.7687861
A120: =Prices!A12 -> Pasture Rental ($/acre) | B120: =Prices!B12 -> 20 | C120: =Prices!C12 -> 20.4
A121: =Prices!A13 -> Sheep Mineral ($/lb) | B121: =Prices!B13 -> 0.5 | C121: =Prices!C13 -> 0.51
A122: =Prices!A15 -> Sept. Slaughter Lamb Price ($/cwt) | B122: =Prices!B15 -> 145.47 | C122: =Prices!C15 -> 143.69
A123: =Prices!A16 -> Current Cull Ewe Price ($/cwt) | B123: =Prices!B16 -> 46.82 | C123: =Prices!C16 -> 46.18
A130: Kansas State University, Department of Agricultural Economics - www.agmanager.info
A131: =A47 -> Publication: AM-FMG-Once-a-Year Lambing | I131: =I94 -> Version- 3.2.2017

Sheet Stocker (hidden)
A1: KSU Beef Stocker Budget | C1: Current Prices | G1: =IF(C1=Prices!B4,TEXT(Prices!B5,"MMM-YYYY"),IF(C1=Prices!C4,TEXT(Prices!C5,"MMM-YYYY"),TEXT(Prices!#REF!,"MMM-YYYY"))) -> (as of March 1st, 2017)
L2: Click on "Current Prices" to change to "One Year Out Prices " or "Five Years Out Prices"
A3: Production Efficiency Information
A4: Death Loss | B4: 0.01 | I4: CWT Produced
A5: Days on Grass | B5: 150 | C5: Average Daily Gain | F5: 1.25 | J5: =(E9-E10)/100 -> 
A8: Gross Return | B8: Price | C8: Unit | E8: Qty | F8: Unit | J8: Total per Year
A9: Feeder Sale | B9: =(IF(C1=Prices!A1,Prices!#REF!,IF(C1=Prices!A2,Prices!#REF!,IF(C1=Prices!A3,Prices!#REF!,"")))) ->  | C9: per cwt | D9: x | E9: =E10+(B5*F5) ->  | F9: lbs | I9: = | J9: =B9*(E9/100) -> 
A10: Purchase price | B10: =(IF(C1=Prices!A1,Prices!B16,IF(C1=Prices!A2,Prices!C16,IF(C1=Prices!A3,Prices!#REF!,"")))) -> 46.82 | C10: per cwt | D10: x | E10: ='Once a Year Lambing'!#REF! ->  | F10: lbs | I10: = | J10: =-(B10*(E10/100)) -> 
A11: Death Loss | J11: =(B4*J10) -> 
A12: Other
A13: Total Gross Return | J13: =SUM(J9:J12) -> 
A15: Variable Costs
A16: Pasture | B16: =IF(C1=Prices!A1, Prices!B12, IF(C1=Prices!A2, Prices!C12, IF(C1=Prices!A3,Prices!#REF!, ""))) -> 20 | C16: per acre | D16: x | E16: =Feed!I5 -> 4 | F16: total acres | I16: = | J16: =B16*E16 -> 80
A17: Crop Residue | B17: =IF(C1=Prices!A1, Prices!#REF!, IF(C1=Prices!A2, Prices!#REF!, IF(C1=Prices!A3,Prices!#REF!, ""))) ->  | C17: per acre | D17: x | E17: =Feed!I6 -> 0 | F17: total acres | I17: = | J17: =B17*E17 -> 
A18: Harvested Forage | B18: =IF(Feed!I10>0,(IF(C1=Prices!A1,(((Feed!I7/Feed!I10)*Prices!B10)+((Feed!I8/Feed!I10)*Prices!B9)+((Feed!I9/Feed!I10)*Prices!B11)),IF(C1=Prices!A2,(((Feed!I7/Feed!I10)*Prices!C10)+((Feed!I8/Feed!I10)*Prices!C9)+((Feed!I9/Feed!I10)*Prices!C11)),IF(C1=Prices!A3,((Feed!I7/Feed!I10)*Prices!#REF!)+((Feed!I8/Feed!I10)*Prices!#REF!)+((Feed!I9/Feed!I10)*Prices!#REF!),"")))),0) -> 0 | C18: per ton | D18: x | E18: =Feed!I10 -> 0 | F18: total tons | I18: = | J18: =B18*E18 -> 0
A19: Grain/Protein Supplements | B19: =IF(Feed!I13>0,(IF(C1=Prices!A1,(((Feed!I12/Feed!I13)*Prices!B7)+((Feed!#REF!/Feed!I13)*Prices!#REF!)+((Feed!I11/Feed!I13)*(Prices!B6*2000)/56)),IF(C1=Prices!A2,(((Feed!I12/Feed!I13)*Prices!C7)+((Feed!#REF!/Feed!I13)*Prices!#REF!)+((Feed!I11/Feed!I13)*(Prices!C6*2000)/56)),IF(C1=Prices!A3,(((Feed!I12/Feed!I13)*Prices!#REF!)+((Feed!#REF!/Feed!I13)*Prices!#REF!)+((Feed!I11/Feed!I13)*(Prices!#REF!*2000)/56)),"")))),0) -> 0 | C19: per ton | D19: x | E19: =Feed!I13 -> 0 | F19: total lbs | I19: = | J19: =(B19/2000)*E19 -> 0
A20: Mineral | B20: =IF(C1=Prices!A1,Prices!#REF!, IF(C1=Prices!A2,Prices!#REF!, IF(C1=Prices!A3,Prices!#REF!, ""))) ->  | C20: per ton | D20: x | E20: =Feed!I14 -> 37.5 | F20: total lbs | I20: = | J20: =(B20/2000)*E20 -> 
A21: Other Feed | B21: 0 | C21: per unit | D21: x | E21: 0 | F21: units | I21: = | J21: =B21*E21 -> 0
A22: Labor | B22: 20 | C22: per hour | D22: x | E22: =0.2*(B5/30) -> 1 | F22: hours | I22: = | J22: =B22*E22 -> 20
A23: Vet Medicine/Drugs | J23: =ROUND(3.99*J5,0) -> 
A24: Marketing costs | J24: =ROUND(5.61*J5,0) -> 
A25: Utilities,Gas, Fuel, Oil | J25: =ROUND(3.25*J5,0) -> 
A26: Machinery, Facility/Equip. Repairs | J26: =ROUND(5.46*J5,0) -> 
A27: Cash Interest Paid | J27: =ROUND(3.55*J5,0) -> 
A28: Other variable costs | J28: =ROUND(1.29*J5,0) -> 
A29: Total Variable Costs | J29: =SUM(J16:J28) -> 
A31: Fixed Costs
A32: Depreciation | J32: 10
A33: Taxes | J33: 1.25
A34: Farm/Livestock Insurance | J34: 1.5
A35: Opportunity Cost of Investment | J35: 23
A36: Other fixed costs | J36: 0
A37: Total Fixed Costs | J37: =SUM(J32:J36) -> 35.75
A39: Total Costs | J39: =J29+J37 -> 
A41: Income Over Variable Costs | J41: =J13-J29 -> 
A42: Income Over Total Costs | J42: =J13-J39 -> 
A44: Kansas State University, Department of Agricultural Economics - www.agmanager.info
A45: Publication: AM-FMG-Stocker | J45: =TEXT(#REF!,"MMM. DD, YYYY") -> 
A47: KSU Beef Stocker Budget
A91: Kansas State University, Department of Agricultural Economics - www.agmanager.info
A92: Publication: AM-FMG-Stocker | J92: =J45 -> 
A94: KSU Beef Stocker Budget
A95: Budget Assumptions
A97: Stocker Feed Requirements | B97: (per animal unit)
B98: Qty | C98: Unit
A99: Pasture | B99: =Feed!I5 -> 4 | C99: total acres for feeding period
A100: Crop Residue | B100: =Feed!I6 -> 0 | C100: total acres for feeding period
A101: Prairie/Brome Hay | B101: =Feed!I7 -> 0 | C101: total tons for feeding period
A102: Silage | B102: =Feed!I8 -> 0 | C102: total tons for feeding period
A103: Alfalfa | B103: =Feed!I9 -> 0 | C103: total tons for feeding period
A104: Total Harvested Forage | B104: =Feed!I10 -> 0 | C104: total tons for feeding period
A105: Corn | B105: =Feed!I11 -> 0 | C105: total pounds for feeding period
A106: DDG's | B106: =Feed!#REF! ->  | C106: total pounds for feeding period
A107: Soybean Meal | B107: =Feed!I12 -> 0 | C107: total pounds for feeding period
A108: Total Grain/Protein Supplements | B108: =Feed!I13 -> 0 | C108: total pounds for feeding period
A109: Salt and Mineral | B109: =Feed!I14 -> 37.5 | C109: total pounds for feeding period
A114: Default Stocker Prices
B115: Current | C115: One Year Out | E115: Five Years Out
A116: Heifer Calf Price ($/cwt) | B116: =Prices!#REF! ->  | C116: =Prices!#REF! ->  | E116: =Prices!#REF! -> 
A117: Steer Calf Price ($/cwt) | B117: =Prices!B16 -> 46.82 | C117: =Prices!C16 -> 46.18 | E117: =Prices!#REF! -> 
A118: Feeder Steers($/cwt) | B118: =Prices!#REF! ->  | C118: =Prices!#REF! ->  | E118: =Prices!#REF! -> 
A119: Corn ($/bu) | B119: =Prices!B6 -> 316.8 | C119: =Prices!C6 -> 319.1 | E119: =Prices!#REF! -> 
A120: Soybean meal ($/ton) | B120: =Prices!B7 -> 5.76 | C120: =Prices!C7 -> 6.322682081 | E120: =Prices!#REF! -> 
A121: Distillers Grains ($/ton) | B121: =Prices!#REF! ->  | C121: =Prices!#REF! ->  | E121: =Prices!#REF! -> 
A122: Silage ($/ton) | B122: =Prices!B9 -> 27.68 | C122: =Prices!C9 -> 30.384 | E122: =Prices!#REF! -> 
A123: Hay ($/ton) | B123: =Prices!B10 -> 65 | C123: =Prices!C10 -> 71.34971098 | E123: =Prices!#REF! -> 
A124: Alfalfa ($/ton) | B124: =Prices!B11 -> 100 | C124: =Prices!C11 -> 109.7687861 | E124: =Prices!#REF! -> 
A125: Pasture Rental ($/acre) | B125: =Prices!B12 -> 20 | C125: =Prices!C12 -> 20.4 | E125: =Prices!#REF! -> 
A126: Crop Residue ($/acre) | B126: =Prices!#REF! ->  | C126: =Prices!#REF! ->  | E126: =Prices!#REF! -> 
A127: Mineral ($/ton) | B127: =Prices!#REF! ->  | C127: =Prices!#REF! ->  | E127: =Prices!#REF! -> 
A135: Kansas State University, Department of Agricultural Economics - www.agmanager.info
A136: Publication: AM-FMG-Stocker | J136: =J92 -> 

Sheet Feedlot (hidden)
A1: KSU Beef Finishing Budget | C1: Current Prices | G1: =IF(C1=Prices!B4,TEXT(Prices!B5,"MMM-YYYY"),IF(C1=Prices!C4,TEXT(Prices!C5,"MMM-YYYY"),TEXT(Prices!#REF!,"MMM-YYYY"))) -> (as of March 1st, 2017)
L2: Click on "Current Prices" to change to "One Year Out Prices " or "Five Years Out Prices"
A3: Production Efficiency Information
A4: Death Loss | B4: 0.015 | I4: CWT Produced
A5: Days on Feed | B5: 160 | C5: Average Daily Gain | F5: 3.7 | J5: =(E8-E9)/100 -> 5.92
A7: Gross Return | B7: Price | C7: Unit | E7: Qty | F7: Unit | J7: Total per Year
A8: Fed Animal Sale | B8: =(IF(C1=Prices!A1,Prices!#REF!,IF(C1=Prices!A2,Prices!#REF!,IF(C1=Prices!A3,Prices!#REF!,"")))) ->  | C8: per cwt | D8: x | E8: =E9+(B5*F5) -> 1367 | F8: lbs | I8: = | J8: =B8*(E8/100) -> 
A9: Purchase price | B9: =(IF(C1=Prices!A1,Prices!#REF!,IF(C1=Prices!A2,Prices!#REF!,IF(C1=Prices!A3,Prices!#REF!,"")))) ->  | C9: per cwt | D9: x | E9: 775 | F9: lbs | I9: = | J9: =-(B9*(E9/100)) -> 
A10: Death Loss | J10: =(B4*J9) -> 
A11: Other
A12: Total Gross Return | J12: =SUM(J8:J11) -> 
A14: Variable Costs
A15: Harvested Forage | B15: =IF(C1=Prices!A1,(((Feed!I19/Feed!I22)*Prices!B10)+((Feed!I20/Feed!I22)*Prices!B9)+((Feed!I21/Feed!I22)*Prices!B11)),IF(C1=Prices!A2,(((Feed!I19/Feed!I22)*Prices!C10)+((Feed!I20/Feed!I22)*Prices!C9)+((Feed!I21/Feed!I22)*Prices!C11)),IF(C1=Prices!A3,((Feed!I19/Feed!I22)*Prices!#REF!)+((Feed!I20/Feed!I22)*Prices!#REF!)+((Feed!I21/Feed!I22)*Prices!#REF!),""))) -> 82.5 | C15: per ton | D15: x | E15: =(Feed!I22*Feedlot!B5)/2000 -> 0.24 | F15: total tons | I15: = | J15: =B15*E15 -> 19.8
A16: Grain/Protein Supplements | B16: =IF(C1=Prices!A1,(((Feed!I25/Feed!I26)*Prices!B7)+((Feed!I24/Feed!I26)*Prices!#REF!)+((Feed!I23/Feed!I26)*(Prices!B6*2000)/56)),IF(C1=Prices!A2,(((Feed!I25/Feed!I26)*Prices!C7)+((Feed!I24/Feed!I26)*Prices!#REF!)+((Feed!I23/Feed!I26)*(Prices!C6*2000)/56)),IF(C1=Prices!A3,(((Feed!I25/Feed!I26)*Prices!#REF!)+((Feed!I24/Feed!I26)*Prices!#REF!)+((Feed!I23/Feed!I26)*(Prices!#REF!*2000)/56)),""))) ->  | C16: per ton | D16: x | E16: =Feed!I26*B5 -> 3520 | F16: total lbs | I16: = | J16: =(B16/2000)*E16 -> 
A17: Mineral | B17: =IF(C1=Prices!A1,Prices!#REF!, IF(C1=Prices!A2,Prices!#REF!, IF(C1=Prices!A3,Prices!#REF!, ""))) ->  | C17: per ton | D17: x | E17: =Feed!I27*B5 -> 80 | F17: total lbs | I17: = | J17: =(B17/2000)*E17 -> 
A18: Other Feed | B18: 0 | C18: per unit | D18: x | E18: 0 | F18: units | I18: = | J18: =B18*E18 -> 0
A19: Labor | B19: 20 | C19: per hour | D19: x | E19: =(B5/30)*0.15 -> 0.8 | F19: hours | I19: = | J19: =B19*E19 -> 16
A20: Vet Medicine/Drugs | J20: =ROUND(3.39*J5,0) -> 20
A21: Marketing costs | J21: =ROUND(1.91*J5,0) -> 11
A22: Utilities,Gas, Fuel, Oil | J22: =ROUND(2.18*J5,0) -> 13
A23: Machinery, Facility/Equip. Repairs | J23: =ROUND(2.7*J5,0) -> 16
A24: Cash Interest Paid | J24: =ROUND(2.85*J5,0) -> 17
A25: Other variable costs | J25: =ROUND(1.42*J5,0) -> 8
A26: Total Variable Costs | J26: =SUM(J15:J25) -> 
A28: Fixed Costs
A29: Depreciation | J29: 13
A30: Taxes | J30: 1.25
A31: Farm/Livestock Insurance | J31: 4.5
A32: Opportunity Cost of Investment | J32: 51
A33: Other fixed costs | J33: 0
A34: Total Fixed Costs | J34: =SUM(J29:J32) -> 69.75
A36: Total Costs | J36: =J26+J34 -> 
A38: Income Over Variable Costs | J38: =J12-J26 -> 
A39: Income Over Total Costs | J39: =J12-J36 -> 
A43: Kansas State University, Department of Agricultural Economics - www.agmanager.info
A44: Publication: AM-FMG-Finishing | J44: =TEXT(#REF!,"MMM. DD, YYYY") -> 
A46: KSU Beef Finishing Budget
A90: Kansas State University, Department of Agricultural Economics - www.agmanager.info
A91: Publication: AM-FMG-Finishing | J91: =J44 -> 
A93: KSU Beef Finishing Budget
A94: Budget Assumptions
A96: Finishing Feed Requirements | B96: (per animal unit)
B97: Qty | C97: Unit
A98: Prairie/Brome Hay | B98: =Feed!I19 -> 1.5 | C98: lbs/day
A99: Silage | B99: =Feed!I20 -> 0 | C99: lbs/day
A100: Alfalfa | B100: =Feed!I21 -> 1.5 | C100: lbs/day
A101: Total Harvested Forage | B101: =Feed!I22 -> 3 | C101: lbs/day
A102: Corn | B102: =Feed!I23 -> 17 | C102: lbs/day
A103: DDG's | B103: =Feed!I24 -> 5 | C103: lbs/day
A104: Soybean Meal | B104: =Feed!I25 -> 0 | C104: lbs/day
A105: Total Grain/Protein Supplements | B105: =Feed!I26 -> 22 | C105: lbs/day
A106: Salt and Mineral | B106: =Feed!I27 -> 0.5 | C106: lbs/day
A113: Default Beef Finishing Prices
B114: Current | C114: One Year Out | E114: Five Years Out
A115: Feeder Steers ($/cwt) | B115: =Prices!#REF! ->  | C115: =Prices!#REF! ->  | E115: =Prices!#REF! -> 
A116: 5-area Fed Cattle ($/cwt) | B116: =Prices!#REF! ->  | C116: =Prices!#REF! ->  | E116: =Prices!#REF! -> 
A117: Corn ($/bu) | B117: =Prices!B6 -> 316.8 | C117: =Prices!C6 -> 319.1 | E117: =Prices!#REF! -> 
A118: Soybean meal ($/ton) | B118: =Prices!B7 -> 5.76 | C118: =Prices!C7 -> 6.322682081 | E118: =Prices!#REF! -> 
A119: Distillers Grains ($/ton) | B119: =Prices!#REF! ->  | C119: =Prices!#REF! ->  | E119: =Prices!#REF! -> 
A120: Silage ($/ton) | B120: =Prices!B9 -> 27.68 | C120: =Prices!C9 -> 30.384 | E120: =Prices!#REF! -> 
A121: Hay ($/ton) | B121: =Prices!B10 -> 65 | C121: =Prices!C10 -> 71.34971098 | E121: =Prices!#REF! -> 
A122: Alfalfa ($/ton) | B122: =Prices!B11 -> 100 | C122: =Prices!C11 -> 109.7687861 | E122: =Prices!#REF! -> 
A123: Pasture Rental ($/acre) | B123: =Prices!B12 -> 20 | C123: =Prices!C12 -> 20.4 | E123: =Prices!#REF! -> 
A124: Crop Residue ($/acre) | B124: =Prices!#REF! ->  | C124: =Prices!#REF! ->  | E124: =Prices!#REF! -> 
A125: Mineral ($/ton) | B125: =Prices!#REF! ->  | C125: =Prices!#REF! ->  | E125: =Prices!#REF! -> 
A133: Kansas State University, Department of Agricultural Economics - www.agmanager.info
A134: Publication: AM-FMG-Finishing | J134: =J91 -> 
